bitfinex-derivatives/quotes_ETHF0:USTF0_20250807
["timestamp","ask_amount","ask_price","bid_price","bid_amount"]
[1754536346714,0.9661,3658.4,3658.3,21.76475099]
[1754536348117,1.4008,3658.4,3658.3,21.76475099]
[1754536348821,0.9661,3658.4,3658.3,21.51285099]
[1754536349112,1.7024,3658.4,3658.3,20.36485099]
[1754536349518,1.7024,3658.4,3658.3,20.82715099]
[1754536349722,1.7024,3658.4,3658.3,2.23815099]
[1754536349920,1.7024,3658.4,3658.3,2.54595099]
[1754536351616,1.2848,3658.4,3658.3,2.08365099]
[1754536351819,1.718,3658.4,3658.3,1.77585099]
[1754536352020,1.2848,3658.4,3658.3,2.54595099]
[1754536352324,1.718,3658.4,3658.3,3.00865099]
[1754536358426,1.718,3658.4,3658.3,2.73745099]
[1754536358724,0.54663,3658.1,3658.0,0.3078]
[1754536358929,0.493,3658.0,3657.9,0.98415779]
[1754536359223,9.9051,3658.0,3657.9,0.98415779]
[1754536359419,51.7207,3658.0,3657.9,0.98415779]
[1754536361727,51.7207,3658.0,3657.0,3.2078]
[1754536361728,1.7129,3657.1,3657.0,3.2078]
[1754536361932,0.6973,3657.1,3656.8,1.77585099]
[1754536362120,1.1305,3657.0,3656.9,0.3078]
[1754536362321,0.4332,3656.9,3656.8,2.23815099]
[1754536362630,42.5129,3656.9,3656.8,1.77585099]
[1754536363229,42.5129,3656.9,3656.8,2.23815099]
[1754536363428,42.5129,3656.9,3656.8,3.53205099]
[1754536363627,40.8,3656.9,3656.8,3.53205099]
[1754536364034,41.3824,3656.9,3656.8,3.53205099]
[1754536364436,41.8156,3656.9,3656.8,3.53205099]
[1754536364637,41.3824,3656.9,3656.8,3.53205099]
[1754536365734,41.8156,3656.9,3656.8,3.53205099]
[1754536366932,41.8156,3656.9,3656.8,1.463]
[1754536367228,41.8156,3656.9,3656.8,3.23885099]
[1754536367632,41.8156,3656.9,3656.8,2.93655099]
[1754536368039,41.8156,3656.9,3656.8,3.23885099]
[1754536368337,41.8156,3656.9,3656.8,3.53205099]
[1754536368834,41.3824,3656.9,3656.8,1.77585099]
[1754536369032,1.4098,3656.7,3656.6,3.22425099]
[1754536369341,1.7129,3656.7,3656.6,3.53205099]
[1754536370340,1.7129,3656.7,3656.6,2.27515099]
[1754536370531,1.7129,3656.7,3656.6,2.73745099]
[1754536370736,1.7129,3656.7,3656.6,3.53205099]
[1754536371535,1.7129,3656.7,3656.6,6.73985099]
[1754536372441,1.7129,3656.7,3656.6,3.53205099]
[1754536372642,1.7129,3656.7,3656.4,1.00918]
[1754536372843,1.7129,3656.7,3656.6,1.77585099]
[1754536373044,1.7129,3656.7,3656.6,2.54595099]
[1754536373342,1.7129,3656.7,3656.6,2.73745099]
[1754536374240,1.7129,3656.7,3656.6,3.23885099]
[1754536376738,1.7129,3656.7,3656.6,3.53205099]
[1754536378846,1.7129,3656.7,3656.6,3.23885099]
[1754536379346,1.7129,3656.7,3656.6,3.53465099]
[1754536380445,0.9766,3656.7,3656.6,3.53465099]
[1754536380643,19.5715,3657.0,3656.9,1.7678]
[1754536380847,19.5715,3657.0,3656.9,3.54365099]
[1754536381049,41.7805,3657.0,3656.9,3.54365099]
[1754536381251,41.7805,3657.0,3656.9,1.4606]
[1754536381547,1.7303,3656.7,3656.6,2.23695099]
[1754536381743,1.7303,3656.7,3656.6,2.54805099]
[1754536382144,1.7303,3656.7,3656.6,3.05265099]
[1754536382545,1.7303,3656.7,3656.6,3.24785099]
[1754536383648,1.7303,3656.7,3656.6,3.54365099]
[1754536388057,18.591,3656.9,3656.7,0.54684]
[1754536388253,19.5715,3656.9,3656.8,1.7678]
[1754536388553,20.3213,3656.9,3656.8,1.7678]
[1754536388754,20.3213,3656.9,3656.8,1.472]
[1754536389149,20.3213,3656.9,3656.8,1.1648]
[1754536389356,20.3213,3656.9,3656.8,2.74545099]
[1754536389655,20.3213,3656.9,3656.8,2.54805099]
[1754536390358,20.3213,3656.9,3656.8,2.08695099]
[1754536391556,20.3213,3656.9,3656.8,2.54805099]
[1754536391956,20.3213,3656.9,3656.8,2.08695099]
[1754536392253,20.3213,3656.9,3656.8,1.77585099]
[1754536392458,1.7303,3656.3,3656.2,0.4611]
[1754536392752,1.7303,3656.0,3655.9,0.3111]
[1754536392959,20.3203,3656.0,3655.8,1.77585099]
[1754536393160,41.8267,3655.9,3655.8,1.77585099]
[1754536393358,41.8267,3655.9,3655.8,2.94065099]
[1754536393656,41.8267,3655.9,3655.8,3.54365099]
[1754536395071,41.8267,3655.9,3655.8,1.7678]
[1754536395257,41.8267,3655.9,3655.8,3.54365099]
[1754536397357,41.3847,3655.9,3655.8,3.54365099]
[1754536397556,40.8,3655.9,3655.8,3.54365099]
[1754536397762,41.3847,3655.9,3655.8,1.472]
[1754536397956,41.8267,3655.9,3655.8,3.54365099]
[1754536398562,41.8267,3655.9,3655.8,1.7678]
[1754536398759,41.8267,3655.9,3655.8,3.54365099]
[1754536399857,41.3847,3655.9,3655.8,3.54365099]
[1754536400162,40.8,3655.9,3655.8,6.75145099]
[1754536401164,41.3847,3655.9,3655.8,3.54365099]
[1754536401369,41.8267,3655.9,3655.8,2.94065099]
[1754536401666,41.8267,3655.9,3655.8,3.54365099]
[1754536402664,41.8267,3655.9,3655.8,1.7678]
[1754536402966,41.8267,3655.9,3655.8,0.9696]
[1754536403667,41.8267,3655.9,3655.8,0.3111]
[1754536404874,41.8267,3655.9,3655.8,0.7722]
[1754536405070,41.8267,3655.9,3655.8,0.3111]
[1754536405272,60.4187,3655.9,3655.8,0.3111]
[1754536405972,60.4187,3655.9,3655.8,0.7722]
[1754536406170,60.4187,3655.9,3655.8,0.9696]
[1754536406778,60.4187,3655.9,3655.8,1.2768]
[1754536408877,60.4187,3655.9,3655.8,1.7742]
[1754536409477,41.8267,3655.9,3655.8,1.7742]
[1754536409880,41.3995,3655.9,3655.8,1.7742]
[1754536410580,41.8279,3655.9,3655.8,1.472]
[1754536411077,41.8279,3655.9,3655.8,1.1648]
[1754536412983,41.8279,3655.9,3655.8,1.7736]
[1754536414282,41.8279,3655.9,3655.8,1.4714]
[1754536414582,41.8279,3655.9,3655.8,1.1648]
[1754536414884,41.8279,3655.9,3655.8,0.9696]
[1754536417088,41.8279,3655.9,3655.8,1.7834]
[1754536417287,41.3995,3655.9,3655.8,1.7834]
[1754536417881,40.8,3655.9,3655.8,1.7834]
[1754536419386,41.3995,3655.9,3655.8,1.7834]
[1754536419788,41.8279,3655.9,3655.8,1.7834]
[1754536420485,41.3995,3655.9,3655.6,2.32285099]
[1754536420690,0.9952,3655.7,3655.6,3.02125099]
[1754536421284,0.9952,3655.7,3655.6,4.06765099]
[1754536422182,1.7073,3655.7,3655.6,4.06765099]
[1754536422591,0.9952,3655.7,3655.6,4.06765099]
[1754536424080,1.7073,3655.7,3655.6,1.7448]
[1754536424285,1.7073,3655.7,3655.6,0.931]
[1754536424485,1.7073,3655.5,3655.4,2.51205099]
[1754536424786,1.7073,3655.5,3655.4,3.21845099]
[1754536424986,1.7073,3655.5,3655.4,3.52065099]
[1754536425888,1.7073,3655.4,3655.3,3.02129099]
[1754536426091,1.7073,3655.4,3655.3,3.32789099]
[1754536426592,1.7073,3655.4,3655.3,0.4934]
[1754536426794,1.7073,3655.4,3655.3,0.2986]
[1754536427586,1.7073,3655.4,3655.1,0.4376]
[1754536427587,0.3957,3655.2,3655.1,0.4376]
[1754536427792,1.7073,3655.2,3655.1,0.7362]
[1754536427989,1.7073,3655.2,3655.0,3.2078]
[1754536428191,1.7073,3655.0,3654.9,1.91596559]
[1754536428394,1.7073,3655.0,3654.9,2.12096559]
[1754536428591,1.7073,3655.0,3654.9,2.72976559]
[1754536428988,1.7073,3655.0,3654.9,1.47836559]
[1754536429297,1.4236,3655.0,3654.9,2.72976559]
[1754536429697,1.7073,3655.0,3654.9,2.72976559]
[1754536431496,1.7073,3655.0,3654.9,1.91596559]
[1754536431698,1.7073,3655.0,3654.9,2.72976559]
[1754536434006,0.9952,3655.0,3654.9,2.72976559]
[1754536435203,40.8,3655.1,3654.9,2.72976559]
[1754536435204,40.8,3655.1,3655.0,1.05069]
[1754536435400,41.3995,3655.1,3655.0,4.06774099]
[1754536436001,1.7073,3655.0,3654.9,1.53207559]
[1754536436700,0.9952,3655.0,3654.9,3.60652658]
[1754536436905,1.7073,3655.0,3654.9,5.05272658]
[1754536438706,1.2045,3655.0,3654.9,5.05272658]
[1754536438908,1.7009,3655.0,3654.9,5.05272658]
[1754536440004,1.7009,3655.0,3654.9,4.50561658]
[1754536440206,1.7009,3655.0,3654.9,0.98496559]
[1754536440510,42.5009,3655.0,3654.9,0.98496559]
[1754536441601,67.0929,3655.0,3654.9,0.98496559]
[1754536441907,70.3007,3655.0,3654.9,0.98496559]
[1754536443805,0.9932,3654.4,3654.3,0.54719]
[1754536444209,0.9932,3654.4,3654.3,0.83249]
[1754536444404,0.9932,3654.4,3654.3,0.54719]
[1754536444405,2.76905099,3654.4,3654.3,0.54719]
[1754536444611,62.16205099,3654.4,3654.1,0.4446]
[1754536444808,0.3907,3654.2,3654.1,1.27712]
[1754536445014,0.9932,3654.2,3654.1,1.27712]
[1754536445807,0.9932,3654.2,3654.1,1.46582]
[1754536446008,0.9932,3654.2,3654.1,0.54722]
[1754536446307,0.9932,3654.2,3654.1,1.66002]
[1754536446509,0.9932,3654.2,3654.1,2.27082]
[1754536446712,0.9923,3654.2,3654.1,2.27082]
[1754536447408,40.8,3654.4,3654.3,1.2154]
[1754536447614,40.8,3654.4,3654.3,4.04665099]
[1754536447813,41.1005,3654.4,3654.3,4.04665099]
[1754536448004,41.4025,3654.4,3654.3,4.04665099]
[1754536449707,40.8,3654.4,3654.3,4.04665099]
[1754536451519,41.4025,3654.4,3654.3,4.04665099]
[1754536452518,0.9932,3654.3,3654.2,3.2078]
[1754536453017,0.9932,3654.3,3654.2,3.9377]
[1754536453615,0.9932,3654.3,3654.2,0.7299]
[1754536454017,0.9932,3654.3,3654.2,6.39915099]
[1754536454018,0.6025,3654.3,3654.2,6.39915099]
[1754536454322,40.8,3654.4,3654.3,2.2708]
[1754536454721,41.4025,3654.4,3654.3,2.2708]
[1754536455519,41.4025,3654.4,3654.3,1.9627]
[1754536455720,0.9932,3654.3,3654.2,4.19961]
[1754536455920,0.9932,3654.3,3654.2,4.48491]
[1754536456322,0.9932,3654.3,3654.2,3.9377]
[1754536456926,0.9932,3654.3,3654.2,4.1264]
[1754536457122,0.9932,3654.3,3654.2,4.6233]
[1754536457427,0.9932,3654.3,3654.2,4.9314]
[1754536457624,0.9932,3654.3,3654.2,4.6233]
[1754536458615,0.9932,3654.3,3654.2,3.2078]
[1754536459419,59.393,3654.4,3653.8,3.6524]
[1754536459420,0.0009,3653.9,3653.8,3.6524]
[1754536459721,0.9932,3653.9,3653.8,4.1264]
[1754536459924,0.9932,3653.9,3653.8,3.2078]
[1754536460118,0.3907,3653.9,3653.5,18.593]
[1754536460323,0.9932,3653.8,3653.7,0.7299]
[1754536460523,0.6025,3653.7,3653.5,0.54731]
[1754536460731,0.9932,3653.4,3653.3,3.3965]
[1754536460929,0.9932,3653.4,3653.3,3.876]
[1754536461130,0.9932,3653.4,3653.3,4.1787]
[1754536461332,41.7932,3653.4,3652.9,0.3027]
[1754536461634,0.9923,3653.0,3652.9,2.271]
[1754536461828,0.6025,3653.2,3652.9,2.271]
[1754536462034,0.9932,3653.2,3653.1,1.46598]
[1754536462328,0.9932,3653.2,3653.1,0.9186]
[1754536462528,0.9932,3653.2,3653.1,0.7299]
[1754536462733,0.9932,3653.2,3653.1,1.7236]
[1754536462931,0.9923,3653.2,3653.1,1.7236]
[1754536463728,0.9932,3653.2,3653.1,1.7236]
[1754536464333,40.8,3653.4,3653.3,1.7236]
[1754536464533,40.8,3653.4,3653.3,3.49945099]
[1754536465639,41.4025,3653.4,3653.3,2.88865099]
[1754536465940,41.4025,3653.4,3653.3,3.49945099]
[1754536467742,40.8,3653.4,3653.3,3.49945099]
[1754536468839,41.4025,3653.4,3653.3,3.49945099]
[1754536469540,40.8,3653.4,3653.3,3.49945099]
[1754536473645,41.3834,3653.4,3653.3,3.49945099]
[1754536475244,41.3843,3653.4,3653.3,3.49945099]
[1754536475540,41.3843,3653.4,3653.3,1.7236]
[1754536475745,41.3843,3653.4,3653.3,3.49945099]
[1754536476347,41.3843,3653.4,3653.3,1.4155]
[1754536476540,41.3843,3653.4,3653.3,0.7299]
[1754536476736,0.3847,3653.3,3653.2,3.75516]
[1754536476947,0.9705,3653.3,3653.2,3.2078]
[1754536479034,0.3862,3653.3,3653.0,0.54738]
[1754536479238,0.9705,3653.1,3653.0,0.54738]
[1754536479438,0.9705,3653.1,3652.8,3.2078]
[1754536479637,0.3847,3652.9,3652.8,5.67045099]
[1754536479839,0.9681,3652.9,3652.8,5.67045099]
[1754536480236,0.9681,3652.9,3652.8,6.73055099]
[1754536480650,0.969,3652.9,3652.8,6.73055099]
[1754536480843,0.9681,3652.9,3652.8,6.73055099]
[1754536481951,0.9681,3652.9,3652.8,4.9547]
[1754536482248,0.969,3652.9,3652.8,6.73055099]
[1754536482449,0.9705,3652.9,3652.8,6.73055099]
[1754536482948,0.9681,3652.9,3652.8,6.73055099]
[1754536483249,0.969,3653.1,3653.0,1.7469]
[1754536483550,0.9705,3653.1,3653.0,1.1409]
[1754536483853,0.969,3653.1,3653.0,1.7469]
[1754536484350,0.9681,3653.1,3653.0,1.7469]
[1754536484551,0.4888,3653.1,3653.0,1.7469]
[1754536485045,0.7796,3653.1,3653.0,1.7469]
[1754536485239,0.2926,3653.1,3653.0,1.7469]
[1754536486353,0.5834,3653.1,3653.0,1.7469]
[1754536486548,0.9681,3653.1,3653.0,1.7469]
[1754536486740,0.969,3653.1,3652.9,0.54741]
[1754536486950,0.9696,3653.0,3652.9,0.84101]
[1754536487246,0.9681,3653.0,3652.9,4.07016099]
[1754536487849,0.0009,3653.2,3652.9,4.07016099]
[1754536488051,0.969,3653.2,3653.1,2.46265099]
[1754536488354,41.0935,3653.4,3653.3,0.6868]
[1754536488564,0.9705,3653.3,3653.1,0.54737]
[1754536488749,0.7743,3653.2,3653.1,0.4953]
[1754536489054,0.9705,3653.2,3653.1,0.4953]
[1754536489248,0.9705,3653.2,3653.1,0.9494]
[1754536489448,0.9705,3653.2,3653.1,1.1409]
[1754536489653,0.9705,3653.2,3653.1,1.7469]
[1754536490554,0.969,3653.2,3653.1,1.7469]
[1754536492655,0.9705,3653.2,3653.1,0.9494]
[1754536493455,0.9705,3653.2,3653.1,1.4478]
[1754536494263,0.9705,3653.2,3653.1,1.7469]
[1754536494462,0.9681,3653.2,3653.1,3.52275099]
[1754536494761,0.9681,3653.2,3653.1,1.7469]
[1754536495056,0.9681,3653.2,3653.1,3.52275099]
[1754536495764,0.969,3653.2,3653.1,3.52275099]
[1754536497563,0.969,3653.2,3653.1,2.72525099]
[1754536497864,0.9705,3653.2,3653.1,0.9494]
[1754536498458,0.3862,3653.2,3652.9,0.4541]
[1754536498761,0.9707,3653.1,3653.0,0.54739]
[1754536499465,0.9707,3653.1,3653.0,0.84069]
[1754536499665,0.9707,3653.1,3653.0,1.27829]
[1754536500355,0.9681,3653.1,3653.0,2.25449]
[1754536500763,0.969,3653.1,3653.0,2.25449]
[1754536503364,0.9681,3653.1,3653.0,2.25449]
[1754536503865,0.7246,3654.1,3654.0,0.54723]
[1754536504067,0.7203,3654.1,3654.0,4.03018099]
[1754536504366,41.8304,3654.1,3654.0,4.03018099]
[1754536505661,41.8304,3654.1,3654.0,0.9299]
[1754536505870,0.4154,3653.9,3653.6,3.7551]
[1754536506067,1.0313,3653.7,3653.6,4.685]
[1754536506365,1.0313,3653.7,3653.6,5.1715]
[1754536506565,1.0313,3653.7,3653.6,4.486]
[1754536506967,1.0313,3653.7,3653.6,4.685]
[1754536507161,1.0313,3653.7,3653.6,5.4622]
[1754536507362,1.0304,3653.7,3653.6,5.4622]
[1754536508360,1.0313,3653.7,3653.6,6.46085099]
[1754536509068,1.0313,3653.7,3653.6,6.94735099]
[1754536509269,1.0313,3653.7,3653.6,7.23805099]
[1754536509971,1.0313,3653.7,3653.6,6.94735099]
[1754536510172,1.0313,3653.7,3653.6,6.10725099]
[1754536510472,1.0313,3653.7,3653.6,5.91355099]
[1754536510865,1.0313,3653.7,3653.6,6.40005099]
[1754536511066,1.0313,3653.7,3653.6,6.69075099]
[1754536511275,60.0109,3654.1,3654.0,1.4164]
[1754536511772,60.0109,3654.1,3654.0,1.1236]
[1754536512072,41.4159,3654.1,3654.0,0.2933]
[1754536512276,41.4159,3654.1,3654.0,0.7309]
[1754536512478,41.4159,3654.1,3654.0,0.9299]
[1754536513869,41.4159,3654.1,3653.8,0.54727]
[1754536514171,1.0313,3653.9,3653.8,1.27817]
[1754536514370,1.0313,3653.9,3653.8,0.7309]
[1754536516076,1.0313,3653.9,3653.8,0.9299]
[1754536516574,1.0313,3653.9,3653.8,1.4164]
[1754536516977,1.0313,3653.9,3653.8,0.9299]
[1754536517776,1.0304,3653.9,3653.8,1.7071]
[1754536518373,1.0304,3653.9,3653.8,3.48295099]
[1754536518574,1.0304,3653.9,3653.8,1.1236]
[1754536518775,1.0304,3653.9,3653.8,0.9299]
[1754536520681,1.0304,3653.9,3653.8,1.1236]
[1754536520880,1.0304,3653.9,3653.8,1.7071]
[1754536525986,41.4159,3654.1,3654.0,1.7071]
[1754536526180,40.8,3654.1,3654.0,3.48295099]
[1754536526482,41.4159,3654.1,3654.0,3.48295099]
[1754536526885,41.4159,3654.1,3654.0,0.9299]
[1754536527276,1.0304,3654.0,3653.8,0.54727]
[1754536527481,1.0304,3653.9,3653.8,1.27817]
[1754536527783,1.0304,3653.9,3653.8,1.47717]
[1754536527982,1.0304,3653.9,3653.8,1.96367]
[1754536528291,1.0304,3653.9,3653.8,2.25437]
[1754536532184,0.5886,3654.0,3653.9,1.7887]
[1754536532384,40.8,3654.1,3653.7,1.77585099]
[1754536532385,41.3886,3654.1,3654.0,2.33594]
[1754536532581,41.3886,3654.1,3654.0,4.11179099]
[1754536534685,40.8,3654.1,3654.0,7.31959099]
[1754536535683,41.3886,3654.1,3654.0,7.31959099]
[1754536535876,41.3886,3654.1,3654.0,6.46045099]
[1754536536482,41.3886,3654.1,3654.0,5.29295099]
[1754536536781,41.3886,3654.1,3654.0,6.77235099]
[1754536537283,41.3886,3654.1,3654.0,6.30445099]
[1754536537491,41.3886,3654.1,3654.0,6.77235099]
[1754536540992,41.3886,3654.1,3654.0,6.46045099]
[1754536541295,41.3886,3654.1,3654.0,6.15395099]
[1754536542288,41.3886,3654.1,3654.0,6.46045099]
[1754536542488,41.3886,3654.1,3654.0,6.77235099]
[1754536545492,40.8,3654.1,3654.0,14.54820198]
[1754536545697,22.1999,3654.7,3654.6,0.7024]
[1754536545900,3.6099,3654.7,3654.6,3.25265099]
[1754536546191,44.4099,3654.7,3654.6,3.56455099]
[1754536546396,44.9985,3654.7,3654.6,3.56455099]
[1754536547295,2.7379,3654.7,3654.6,3.25265099]
[1754536547497,1.0125,3655.7,3654.7,1.0863]
[1754536547698,1.7141,3654.7,3654.6,3.2078]
[1754536547995,0.7016,3654.3,3654.2,3.2078]
[1754536548192,1.7141,3654.3,3654.2,3.2078]
[1754536548592,0.7016,3654.3,3654.1,0.54723]
[1754536548793,1.2902,3654.1,3654.0,1.51554]
[1754536549000,1.7141,3654.1,3654.0,1.51554]
[1754536551213,1.7141,3654.1,3654.0,0.9683]
[1754536551416,1.7141,3653.9,3653.8,3.5171]
[1754536552104,42.5141,3653.9,3653.8,3.5171]
[1754536552304,42.5141,3653.9,3653.8,3.2078]
[1754536553006,1.7141,3653.0,3652.9,6.64707316]
[1754536553315,1.7141,3653.0,3652.9,3.2078]
[1754536553613,42.5141,3653.0,3652.9,3.2078]
[1754536558219,41.5016,3653.0,3652.6,0.54745]
[1754536558416,0.7016,3652.4,3652.3,3.7553]
[1754536558622,1.7141,3652.4,3652.3,4.7236]
[1754536559712,1.7141,3652.4,3652.3,4.0646]
[1754536559916,1.7141,3652.4,3652.3,3.7553]
[1754536560721,1.7141,3652.4,3652.3,4.4881]
[1754536560920,42.5141,3652.4,3652.3,4.4881]
[1754536561121,42.5141,3652.4,3652.3,3.9406]
[1754536561424,42.5141,3652.4,3652.3,3.2078]
[1754536562722,42.5141,3652.4,3652.3,3.6467]
[1754536562921,40.8,3652.4,3652.3,4.3249]
[1754536563127,40.8,3652.4,3652.3,4.9152]
[1754536563316,41.8605,3652.4,3652.3,4.9152]
[1754536563522,41.8605,3652.4,3652.3,4.3249]
[1754536564727,40.8,3652.4,3652.3,4.9152]
[1754536565325,41.3938,3652.4,3652.3,4.9152]
[1754536565527,41.8605,3652.4,3652.3,4.9152]
[1754536565729,41.0883,3652.4,3652.3,4.9152]
[1754536565928,41.3938,3652.4,3652.3,4.9152]
[1754536567827,3.2078,3653.0,3652.3,4.9152]
[1754536568027,8.015,3653.9,3653.1,0.2888]
[1754536568233,0.54725,3654.0,3653.1,2.25478]
[1754536568234,1.3007,3653.2,3653.1,2.25478]
[1754536568425,1.7674,3653.2,3653.1,4.03063099]
[1754536570832,40.8,3653.2,3653.1,4.03063099]
[1754536571630,0.7981,3653.6,3653.5,1.22552]
[1754536571835,1.3007,3653.9,3653.8,1.22546]
[1754536572028,3.2078,3654.2,3653.3,3.2078]
[1754536572029,23.0434,3654.2,3654.1,0.6782]
[1754536572334,60.6356,3654.2,3654.1,1.4186]
[1754536572529,41.2096,3654.2,3654.1,1.7074]
[1754536572731,41.3938,3654.2,3654.1,1.7074]
[1754536572926,41.8605,3654.2,3654.1,1.7074]
[1754536573123,40.8,3654.2,3654.1,1.7074]
[1754536573327,41.3938,3654.2,3654.1,1.7074]
[1754536573525,40.8,3654.2,3654.1,1.7074]
[1754536574328,41.3938,3654.2,3654.1,1.7074]
[1754536574532,41.8605,3654.2,3654.1,1.7074]
[1754536575735,41.3938,3654.2,3654.1,1.7074]
[1754536576129,40.8,3654.2,3654.1,1.7074]
[1754536577235,41.3938,3654.2,3654.1,1.7074]
[1754536577535,41.8605,3654.2,3654.1,1.7074]
[1754536578129,41.3938,3654.2,3654.1,1.7074]
[1754536580128,41.3938,3654.2,3654.1,1.4186]
[1754536580335,1.7674,3654.1,3653.9,3.2078]
[1754536580535,0.7069,3654.0,3653.9,5.53090099]
[1754536580741,1.7674,3654.0,3653.9,4.98365099]
[1754536580941,1.7674,3654.0,3653.9,5.47355099]
[1754536581145,1.7674,3654.0,3653.9,5.91245099]
[1754536581440,1.7674,3654.0,3653.9,6.10075099]
[1754536581836,1.7674,3654.0,3653.9,5.91245099]
[1754536582037,1.7674,3654.0,3653.9,5.27755099]
[1754536582243,1.7674,3654.0,3653.9,4.98365099]
[1754536582847,1.7674,3654.0,3653.9,5.91245099]
[1754536583542,1.7674,3654.0,3653.9,4.98365099]
[1754536585137,0.54726,3653.9,3653.5,3.2078]
[1754536585342,1.7674,3653.6,3653.5,3.2078]
[1754536585745,1.7674,3653.2,3653.1,3.2078]
[1754536586245,42.5674,3653.2,3653.1,3.2078]
[1754536586440,42.5674,3653.2,3652.8,0.54742]
[1754536586745,41.8605,3653.2,3653.1,4.03063099]
[1754536587044,41.3938,3653.2,3653.1,4.03063099]
[1754536587247,41.8605,3653.2,3653.1,4.03063099]
[1754536587945,40.8,3653.2,3653.1,4.03063099]
[1754536588148,41.3938,3653.2,3653.1,4.03063099]
[1754536588342,41.8605,3653.2,3653.1,4.03063099]
[1754536588644,41.8605,3653.2,3653.1,3.48325099]
[1754536588945,41.8605,3653.2,3653.1,2.26575099]
[1754536589242,41.8605,3653.2,3653.1,1.77585099]
[1754536589446,41.8605,3653.2,3652.9,0.2939]
[1754536589447,1.7726,3653.0,3652.9,0.2939]
[1754536589653,1.7726,3653.0,3652.8,1.77585099]
[1754536589852,0.7071,3652.7,3652.6,3.6921]
[1754536590145,1.7726,3652.7,3652.6,4.6738]
[1754536590538,1.7726,3652.7,3652.6,4.9729]
[1754536591249,1.7726,3652.7,3652.6,3.2078]
[1754536594344,0.7071,3652.3,3652.2,4.98365099]
[1754536594547,1.7726,3652.3,3652.2,3.2078]
[1754536594943,42.5726,3652.3,3652.2,3.2078]
[1754536598851,42.5726,3652.3,3652.2,4.98365099]
[1754536599159,42.5726,3652.3,3652.2,5.95225099]
[1754536599346,40.8,3652.3,3652.2,6.74875099]
[1754536599855,41.8655,3652.3,3652.2,0.4843]
[1754536600549,41.8655,3652.3,3652.2,1.466]
[1754536602251,41.8655,3652.3,3652.2,0.54751]
[1754536602457,1.7726,3652.2,3652.1,0.54752]
[1754536602858,1.7726,3652.2,3652.1,0.2939]
[1754536603158,1.7726,3652.0,3651.9,2.00332472]
[1754536603356,1.7726,3652.0,3651.9,0.98577472]
[1754536603557,7.7726,3652.0,3651.9,0.98577472]
[1754536605162,48.5726,3652.0,3651.9,0.98577472]
[1754536605553,48.5726,3652.0,3651.9,1.53333472]
[1754536605751,42.5726,3652.0,3651.9,2.69233472]
[1754536605952,61.2536,3652.0,3651.9,2.01763472]
[1754536606752,42.5726,3652.0,3651.9,2.99933472]
[1754536606951,40.8,3652.0,3651.9,3.29843472]
[1754536607158,41.4098,3652.0,3651.9,3.29843472]
[1754536607465,41.8655,3652.0,3651.9,3.29843472]
[1754536607959,40.8,3652.0,3651.9,3.29843472]
[1754536609360,40.8,3652.0,3651.9,2.22233472]
[1754536609550,41.4098,3652.0,3651.9,5.07428571]
[1754536609754,40.8,3652.0,3651.9,5.07428571]
[1754536611062,22.2965,3652.4,3652.3,1.2365]
[1754536611260,1.0075,3652.4,3652.3,4.08845099]
[1754536611562,41.2941,3652.4,3652.3,3.01235099]
[1754536611763,41.5988,3652.4,3652.3,3.01235099]
[1754536611957,40.8,3652.4,3652.3,3.01235099]
[1754536612158,40.8,3652.4,3652.3,4.08845099]
[1754536612358,41.4098,3652.4,3652.3,4.08845099]
[1754536612556,40.8,3652.4,3652.3,4.08845099]
[1754536612860,3.8176,3653.0,3652.9,1.7651]
[1754536612861,3.2078,3653.0,3652.9,1.7651]
[1754536613055,3.2078,3653.0,3652.9,3.54095099]
[1754536613456,0.3977,3653.1,3653.0,2.31249]
[1754536613956,1.0075,3653.1,3653.0,2.31249]
[1754536614355,1.3169,3653.1,3653.0,2.31249]
[1754536614560,1.7726,3653.1,3653.0,2.31249]
[1754536614760,1.7726,3653.1,3653.0,1.159]
[1754536614961,1.7726,3653.1,3653.0,0.9543]
[1754536615465,42.5726,3653.1,3653.0,0.9543]
[1754536615964,1.7726,3653.0,3652.9,2.80755099]
[1754536616165,1.7726,3653.0,3652.9,3.48225099]
[1754536616366,1.7726,3653.0,3652.9,4.08835099]
[1754536617570,1.7726,3653.0,3652.9,2.80755099]
[1754536618167,1.7726,3653.0,3652.9,3.27755099]
[1754536618370,1.7726,3653.0,3652.9,0.8413]
[1754536618663,1.7726,3653.0,3652.9,0.5474]
[1754536619470,1.7726,3653.0,3652.8,2.32326099]
[1754536619672,1.7302,3652.9,3652.8,3.27996099]
[1754536620670,1.7302,3652.9,3652.8,2.82906099]
[1754536620861,1.7302,3652.9,3652.6,3.5125]
[1754536621062,1.7302,3652.7,3652.6,3.2078]
[1754536622161,1.7302,3652.7,3652.6,4.3654]
[1754536622356,19.837,3652.9,3652.8,1.7451]
[1754536622564,19.837,3652.9,3652.8,3.52095099]
[1754536622763,19.368,3652.9,3652.8,3.52095099]
[1754536622972,1.2612,3652.9,3652.8,3.52095099]
[1754536623159,1.7302,3652.9,3652.8,3.52095099]
[1754536631169,1.7302,3652.9,3652.8,3.23815099]
[1754536631371,1.7302,3652.9,3652.8,2.93345099]
[1754536632070,1.7302,3652.9,3652.8,3.52095099]
[1754536634178,1.7302,3652.9,3652.8,3.23815099]
[1754536634377,1.7302,3652.9,3652.8,1.77585099]
[1754536634872,1.7302,3652.9,3652.7,0.54744]
[1754536634873,1.7302,3652.7,3652.6,3.2078]
[1754536635071,0.677,3652.5,3652.4,1.2614]
[1754536635271,1.7302,3652.5,3652.4,1.2614]
[1754536636776,1.7302,3652.5,3652.4,1.4623]
[1754536636975,1.7302,3652.5,3652.4,1.7451]